[Event "White Rook U14 Final 2019"]
[Site "Sochi"]
[Date "2019.06.06"]
[Round "2.19"]
[White "Voloshenyuk, Gleb"]
[Black "Zenkov, Maksim"]
[Result "0-1"]
[ECO "C01"]
[WhiteElo "1235"]
[BlackElo "1394"]
[Annotator "NA RC"]
[PlyCount "94"]
[EventDate "2019.06.02"]
[EventCountry "RUS"]
[SourceTitle "playchess.com"]
[Source "ChessBase"]
[SourceQuality "1"]
[TimeControl "5400+30"]

1. e4 {[%emt 0:00:00]} e6 {[%emt 0:00:00]} 2. d4 {[%emt 0:00:00]} d5 {[%emt 0:00:00]} 3. exd5 {[%emt 0:00:00]} exd5 {[%emt 0:00:00]} 4. Bd3 {[%emt 0:00:36]} Bd6 {[%emt 0:00:00]} 5. h3 {[%emt 0:00:39]} Ne7 {[%emt 0:00:40]} 6. Nf3 {[%emt 0:02:42]} f6 {[%emt 0:03:59]} 7. O-O {[%emt 0:04:13]} Be6 {[%emt 0:00:15]} 8. Re1 {[%emt 0:07:52]} Qd7 {[%emt 0:00:20]} 9. Nh2 {[%emt 0:19:12]} Nbc6 {[%emt 0:04:08]} 10. c3 {[%emt 0:04:27]} O-O-O {[%emt 0:00:34]} 11. Qf3 {[%emt 0:03:34]} Ng6 {[%emt 0:02:49]} 12. Rxe6 {[%emt 0:16:51]} Nh4 {[%emt 0:16:05]} 13. Qg4 {[%emt 0:02:48]} h5 {[%emt 0:03:14]} 14. Qe2 {[%emt 0:03:39]} Be5 {[%emt 0:16:06]} 15. Rxc6 {[%emt 0:09:00]} Bxh2+ {[%emt 0:00:48]} 16. Kxh2 {[%emt 0:01:28]} Qxc6 {[%emt 0:00:43]} 17. g3 {[%emt 0:03:08]} Rde8 {[%emt 0:03:12]} 18. Qd1 {[%emt 0:00:34]} Re1 {[%emt 0:02:43]} 19. Qc2 {[%emt 0:04:43]} g5 {[%emt 0:08:53]} 20. Bd2 {[%emt 0:05:08]} Nf3+ {[%emt 0:01:34]} 21. Kg2 {[%emt 0:01:03]} g4 {[%emt 0:00:14]} 22. Bf1 {[%emt 0:01:58]} gxh3+ {[%emt 0:08:15]} 23. Kxh3 {[%emt 0:02:16]} Rxf1 {[%emt 0:05:20]} 24. Qf5+ {[%emt 0:02:09]} Qd7 {[%emt 0:00:03]} 25. Qxd7+ {[%emt 0:00:25]} Kxd7 {[%emt 0:00:00]} 26. Be3 {[%emt 0:01:11]} Rg1 {[%emt 0:02:17]} 27. a4 {[%emt 0:00:28]} f5 {[%emt 0:01:08]} 28. Nd2 {[%emt 0:02:08]} Rxa1 {[%emt 0:00:24]} 29. Nxf3 {[%emt 0:00:17]} Rxa4 {[%emt 0:00:23]} 30. Ne5+ {[%emt 0:00:13]} Ke6 {[%emt 0:00:09]} 31. Nf3 {[%emt 0:00:08]} Ra2 {[%emt 0:00:28]} 32. Ng5+ {[%emt 0:01:03]} Kf6 {[%emt 0:00:27]} 33. Bf4 {[%emt 0:00:13]} Rg8 {[%emt 0:02:01]} 34. Nf3 {[%emt 0:00:00]} c6 {[%emt 0:01:07]} 35. Be5+ {[%emt 0:00:30]} Ke6 {[%emt 0:00:08]} 36. Kh4 {[%emt 0:00:05]} Rxb2 {[%emt 0:00:12]} 37. Ng5+ {[%emt 0:00:32]} Rxg5 {[%emt 0:00:43]} 38. Kxg5 {[%emt 0:00:16]} Rxf2 {[%emt 0:00:34]} 39. Kxh5 {[%emt 0:00:08]} a5 {[%emt 0:00:00]} 40. Bf4 {[%emt 0:00:20]} Rxf4 {[%emt 0:00:09]} 41. gxf4 {[%emt 0:00:08]} a4 {[%emt 0:00:00]} 42. Kg6 {[%emt 0:00:15]} a3 {[%emt 0:00:04]} 43. Kg7 {[%emt 0:00:07]} a2 {[%emt 0:00:05]} 44. c4 {[%emt 0:00:28]} a1=Q {[%emt 0:00:06]} 45. c5 {[%emt 0:00:14]} Qg1+ {[%emt 0:00:13]} 46. Kf8 {[%emt 0:00:24]} Qg4 {[%emt 0:00:01]} 47. Ke8 {[%emt 0:00:19]} Qg8# {[%emt 0:00:05]} 0-1

[Event "White Rook U14 Final 2019"]
[Site "Sochi"]
[Date "2019.06.06"]
[Round "2.20"]
[White "Golikova, Alisa"]
[Black "Tsaregorodtseva, Varvara"]
[Result "1-0"]
[ECO "B01"]
[WhiteElo "1252"]
[BlackElo "1235"]
[Annotator "NA RC"]
[PlyCount "37"]
[EventDate "2019.06.02"]
[EventCountry "RUS"]
[SourceTitle "playchess.com"]
[Source "ChessBase"]
[SourceQuality "1"]
[TimeControl "5400+30"]

1. e4 {[%emt 0:00:00]} d5 {[%emt 0:00:00]} 2. exd5 {[%emt 0:00:00]} Qxd5 {[%emt 0:00:00]} 3. Nf3 {[%emt 0:00:00]} Nf6 {[%emt 0:00:00]} 4. d4 {[%emt 0:00:00]} Nc6 {[%emt 0:00:08]} 5. Be2 {[%emt 0:01:12]} Bg4 {[%emt 0:03:13]} 6. O-O {[%emt 0:00:45]} O-O-O {[%emt 0:03:19]} 7. c4 {[%emt 0:02:17]} Qh5 {[%emt 0:04:45]} 8. d5 {[%emt 0:02:02]} Qg6 {[%emt 0:01:06]} 9. Bd3 {[%emt 0:09:20]} Bf5 {[%emt 0:01:12]} 10. Nh4 {[%emt 0:02:05]} Bg4 {[%emt 0:01:56]} 11. Nxg6 {[%emt 0:07:33]} Bxd1 {[%emt 0:00:23]} 12. Nxh8 {[%emt 0:00:21]} Ne5 {[%emt 0:01:03]} 13. Rxd1 {[%emt 0:00:56]} e6 {[%emt 0:00:25]} 14. Bf4 {[%emt 0:02:04]} Nxd3 {[%emt 0:01:40]} 15. Rxd3 {[%emt 0:00:00]} Re8 {[%emt 0:06:01]} 16. Nxf7 {[%emt 0:02:06]} exd5 {[%emt 0:00:33]} 17. Nc3 {[%emt 0:01:25]} dxc4 {[%emt 0:00:39]} 18. Rd4 {[%emt 0:00:18]} Re7 {[%emt 0:09:11]} 19. Rd8# {[%emt 0:00:48]} 1-0

[Event "White Rook U14 Final 2019"]
[Site "Sochi"]
[Date "2019.06.06"]
[Round "2.21"]
[White "Epifanov, Anton"]
[Black "Suvanbekov, Jahangir"]
[Result "1-0"]
[ECO "A20"]
[WhiteElo "1773"]
[BlackElo "1569"]
[Annotator "NA RC"]
[PlyCount "93"]
[EventDate "2019.06.02"]
[EventCountry "RUS"]
[SourceTitle "playchess.com"]
[Source "ChessBase"]
[SourceQuality "1"]
[TimeControl "5400+30"]

1. c4 {[%emt 0:00:00]} e5 {[%emt 0:00:00]} 2. g3 {[%emt 0:00:00]} c6 {[%emt 0:00:00]} 3. Bg2 {[%emt 0:00:00]} d5 {[%emt 0:00:43]} 4. d3 {[%emt 0:00:36]} Bb4+ {[%emt 0:00:19]} 5. Bd2 {[%emt 0:00:00]} Bxd2+ {[%emt 0:00:07]} 6. Nxd2 {[%emt 0:00:00]} Bf5 {[%emt 0:00:19]} 7. cxd5 {[%emt 0:00:27]} cxd5 {[%emt 0:00:00]} 8. Qb3 {[%emt 0:00:35]} Ne7 {[%emt 0:05:03]} 9. Qxb7 {[%emt 0:08:29]} Nbc6 {[%emt 0:00:11]} 10. Qa6 {[%emt 0:01:57]} Rb8 {[%emt 0:01:44]} 11. Ngf3 {[%emt 0:15:14]} Rxb2 {[%emt 0:04:11]} 12. Qa3 {[%emt 0:03:16]} Rb8 {[%emt 0:04:59]} 13. O-O {[%emt 0:01:04]} O-O {[%emt 0:02:49]} 14. Rab1 {[%emt 0:03:28]} Qd7 {[%emt 0:08:25]} 15. Rfc1 {[%emt 0:02:02]} e4 {[%emt 0:03:22]} 16. Ne1 {[%emt 0:00:35]} Nd4 {[%emt 0:02:43]} 17. Bf1 {[%emt 0:06:52]} Bg4 {[%emt 0:04:10]} 18. e3 {[%emt 0:00:16]} Ne2+ {[%emt 0:02:33]} 19. Bxe2 {[%emt 0:00:10]} Bxe2 {[%emt 0:00:05]} 20. dxe4 {[%emt 0:00:20]} dxe4 {[%emt 0:01:00]} 21. Nxe4 {[%emt 0:03:39]} Qh3 {[%emt 0:07:35]} 22. Ng2 {[%emt 0:00:13]} Rxb1 {[%emt 0:03:40]} 23. Rxb1 {[%emt 0:00:08]} Qd7 {[%emt 0:02:45]} 24. Qd6 {[%emt 0:08:17]} Qxd6 {[%emt 0:01:28]} 25. Nxd6 {[%emt 0:00:41]} Rd8 {[%emt 0:00:31]} 26. Ne4 {[%emt 0:01:48]} Rd1+ {[%emt 0:00:53]} 27. Rxd1 {[%emt 0:00:40]} Bxd1 {[%emt 0:00:01]} 28. Nc3 {[%emt 0:00:03]} Bc2 {[%emt 0:01:11]} 29. Ne1 {[%emt 0:00:07]} Bf5 {[%emt 0:00:00]} 30. Nf3 {[%emt 0:00:30]} Nc6 {[%emt 0:00:28]} 31. Nd4 {[%emt 0:00:54]} Nxd4 {[%emt 0:00:00]} 32. exd4 {[%emt 0:00:00]} Bd7 {[%emt 0:00:00]} 33. Kg2 {[%emt 0:00:00]} f5 {[%emt 0:00:16]} 34. Kf3 {[%emt 0:00:19]} Kf7 {[%emt 0:00:29]} 35. Ke3 {[%emt 0:01:01]} Ke6 {[%emt 0:00:16]} 36. d5+ {[%emt 0:00:00]} Kd6 {[%emt 0:00:13]} 37. Kd4 {[%emt 0:00:03]} a6 {[%emt 0:07:17]} 38. Nd1 {[%emt 0:00:06]} Bb5 {[%emt 0:02:14]} 39. Ne3 {[%emt 0:00:09]} g6 {[%emt 0:00:00]} 40. Nc4+ {[%emt 0:00:11]} Bxc4 {[%emt 0:00:00]} 41. Kxc4 {[%emt 0:00:05]} g5 {[%emt 0:00:19]} 42. Kd4 {[%emt 0:00:04]} h6 {[%emt 0:00:46]} 43. f4 {[%emt 0:00:08]} g4 {[%emt 0:00:19]} 44. a3 {[%emt 0:00:05]} h5 {[%emt 0:00:12]} 45. a4 {[%emt 0:00:04]} a5 {[%emt 0:00:00]} 46. Kc4 {[%emt 0:00:04]} Kc7 {[%emt 0:00:00]} 47. Kc5 {[%emt 0:00:03]} 1-0

[Event "White Rook U14 Final 2019"]
[Site "Sochi"]
[Date "2019.06.06"]
[Round "2.22"]
[White "Solomko, Artur"]
[Black "Muravskii, Mikhail"]
[Result "1-0"]
[ECO "B03"]
[WhiteElo "1498"]
[BlackElo "1186"]
[Annotator "NA RC"]
[PlyCount "53"]
[EventDate "2019.06.02"]
[EventCountry "RUS"]
[SourceTitle "playchess.com"]
[Source "ChessBase"]
[SourceQuality "1"]
[TimeControl "5400+30"]

1. e4 {[%emt 0:00:00]} Nf6 {[%emt 0:00:00]} 2. e5 {[%emt 0:00:00]} Nd5 {[%emt 0:00:00]} 3. Bc4 {[%emt 0:00:00]} Nb6 {[%emt 0:00:00]} 4. Bb3 {[%emt 0:00:00]} Nc6 {[%emt 0:00:00]} 5. d4 {[%emt 0:00:00]} d6 {[%emt 0:00:29]} 6. exd6 {[%emt 0:01:56]} cxd6 {[%emt 0:00:08]} 7. Nf3 {[%emt 0:00:00]} Bg4 {[%emt 0:00:00]} 8. Bxf7+ {[%emt 0:00:27]} Kxf7 {[%emt 0:00:34]} 9. Ng5+ {[%emt 0:00:00]} Ke8 {[%emt 0:00:10]} 10. Qxg4 {[%emt 0:00:00]} Qc8 {[%emt 0:00:47]} 11. Qf4 {[%emt 0:02:32]} Nb4 {[%emt 0:04:17]} 12. Qf7+ {[%emt 0:05:01]} Kd8 {[%emt 0:02:29]} 13. Na3 {[%emt 0:00:05]} Nxc2+ {[%emt 0:00:28]} 14. Nxc2 {[%emt 0:23:29]} Qxc2 {[%emt 0:01:44]} 15. Bf4 {[%emt 0:00:08]} Rc8 {[%emt 0:02:26]} 16. O-O {[%emt 0:02:24]} Qe2 {[%emt 0:14:53]} 17. Rfe1 {[%emt 0:01:45]} Qb5 {[%emt 0:07:21]} 18. Ne6+ {[%emt 0:01:43]} Kd7 {[%emt 0:01:45]} 19. Nxf8+ {[%emt 0:00:17]} Rcxf8 {[%emt 0:02:35]} 20. Rxe7+ {[%emt 0:00:33]} Kd8 {[%emt 0:00:02]} 21. Qe6 {[%emt 0:00:00]} Rf6 {[%emt 0:01:13]} 22. Qe4 {[%emt 0:11:33]} Qc6 {[%emt 0:01:29]} 23. Bg5 {[%emt 0:02:44]} d5 {[%emt 0:11:27]} 24. Qe1 {[%emt 0:02:04]} Rg6 {[%emt 0:01:59]} 25. Re8+ {[%emt 0:02:49]} Kc7 {[%emt 0:06:36]} 26. Qe7+ {[%emt 0:02:23]} Nd7 {[%emt 0:00:09]} 27. Qd8+ {[%emt 0:00:15]} 1-0

[Event "White Rook U14 Final 2019"]
[Site "Sochi"]
[Date "2019.06.06"]
[Round "2.25"]
[White "Buyarov, Maxim"]
[Black "Khanin, Mikhail E."]
[Result "0-1"]
[ECO "C02"]
[WhiteElo "1493"]
[BlackElo "1692"]
[Annotator "NA RC"]
[PlyCount "50"]
[EventDate "2019.06.02"]
[EventCountry "RUS"]
[SourceTitle "playchess.com"]
[Source "ChessBase"]
[SourceQuality "1"]
[TimeControl "5400+30"]

1. e4 {[%emt 0:00:00]} e6 {[%emt 0:00:00]} 2. d4 {[%emt 0:00:00]} d5 {[%emt 0:00:00]} 3. e5 {[%emt 0:00:39]} c5 {[%emt 0:00:00]} 4. c3 {[%emt 0:00:00]} Qb6 {[%emt 0:00:00]} 5. Nf3 {[%emt 0:00:58]} Nc6 {[%emt 0:00:00]} 6. a3 {[%emt 0:00:16]} c4 {[%emt 0:00:00]} 7. g3 {[%emt 0:04:34]} Na5 {[%emt 0:00:07]} 8. Nbd2 {[%emt 0:02:22]} Bd7 {[%emt 0:00:59]} 9. Bh3 {[%emt 0:05:39]} Be7 {[%emt 0:02:23]} 10. O-O {[%emt 0:03:11]} h5 {[%emt 0:02:07]} 11. Ne1 {[%emt 0:03:44]} g5 {[%emt 0:03:52]} 12. Ng2 {[%emt 0:15:27]} g4 {[%emt 0:02:36]} 13. Bxg4 {[%emt 0:01:21]} hxg4 {[%emt 0:00:00]} 14. Qxg4 {[%emt 0:00:13]} O-O-O {[%emt 0:00:40]} 15. Qg7 {[%emt 0:02:56]} Nh6 {[%emt 0:06:31]} 16. Nxc4 {[%emt 0:03:11]} Nxc4 {[%emt 0:01:56]} 17. Bxh6 {[%emt 0:00:00]} Qxb2 {[%emt 0:03:58]} 18. Qxf7 {[%emt 0:10:41]} Rxh6 {[%emt 0:02:03]} 19. Rfb1 {[%emt 0:18:33]} Qxc3 {[%emt 0:04:22]} 20. Rc1 {[%emt 0:09:06]} Qxd4 {[%emt 0:03:36]} 21. Qxe7 {[%emt 0:00:56]} Qxe5 {[%emt 0:01:06]} 22. Ne3 {[%emt 0:01:18]} Qe4 {[%emt 0:04:31]} 23. Qc5+ {[%emt 0:02:22]} Bc6 {[%emt 0:00:35]} 24. Qxa7 {[%emt 0:06:45]} d4 {[%emt 0:01:52]} 25. f3 {[%emt 0:02:39]} Qxe3+ {[%emt 0:00:10]} 0-1

[Event "White Rook U14 Final 2019"]
[Site "Sochi"]
[Date "2019.06.06"]
[Round "2.26"]
[White "Laukhina, Margarita A."]
[Black "Arhipov, Egor"]
[Result "1/2-1/2"]
[ECO "E18"]
[WhiteElo "1489"]
[BlackElo "1390"]
[Annotator "NA RC"]
[PlyCount "98"]
[EventDate "2019.06.02"]
[EventCountry "RUS"]
[SourceTitle "playchess.com"]
[Source "ChessBase"]
[SourceQuality "1"]
[TimeControl "5400+30"]

1. d4 {[%emt 0:00:00]} Nf6 {[%emt 0:00:00]} 2. c4 {[%emt 0:00:00]} e6 {[%emt 0:00:00]} 3. Nf3 {[%emt 0:00:00]} b6 {[%emt 0:04:03]} 4. g3 {[%emt 0:00:36]} Bb7 {[%emt 0:01:27]} 5. Bg2 {[%emt 0:00:10]} c5 {[%emt 0:05:19]} 6. O-O {[%emt 0:03:26]} Be7 {[%emt 0:03:16]} 7. Nc3 {[%emt 0:04:33]} O-O {[%emt 0:06:32]} 8. d5 {[%emt 0:02:01]} exd5 {[%emt 0:00:55]} 9. cxd5 {[%emt 0:00:40]} d6 {[%emt 0:00:23]} 10. e4 {[%emt 0:01:45]} Nbd7 {[%emt 0:00:59]} 11. h3 {[%emt 0:02:02]} Ba6 {[%emt 0:07:39]} 12. Re1 {[%emt 0:00:00]} Rc8 {[%emt 0:09:51]} 13. Bf4 {[%emt 0:05:47]} Qc7 {[%emt 0:06:35]} 14. e5 {[%emt 0:08:18]} dxe5 {[%emt 0:00:33]} 15. Nxe5 {[%emt 0:03:38]} Bd6 {[%emt 0:01:09]} 16. Nxd7 {[%emt 0:00:00]} Qxd7 {[%emt 0:00:52]} 17. Bg5 {[%emt 0:03:18]} Rfe8 {[%emt 0:09:07]} 18. Bxf6 {[%emt 0:03:29]} gxf6 {[%emt 0:00:04]} 19. Ne4 {[%emt 0:03:56]} Be7 {[%emt 0:04:29]} 20. Qf3 {[%emt 0:05:12]} f5 {[%emt 0:10:42]} 21. Nc3 {[%emt 0:01:53]} Bf6 {[%emt 0:01:36]} 22. h4 {[%emt 0:01:09]} Rcd8 {[%emt 0:05:32]} 23. Qf4 {[%emt 0:04:43]} Bd3 {[%emt 0:04:55]} 24. a4 {[%emt 0:04:11]} a6 {[%emt 0:05:31]} 25. Qd2 {[%emt 0:02:59]} c4 {[%emt 0:01:12]} 26. Ne2 {[%emt 0:01:25]} Re7 {[%emt 0:03:50]} 27. Nf4 {[%emt 0:01:19]} Rde8 {[%emt 0:03:06]} 28. Rxe7 {[%emt 0:00:24]} Rxe7 {[%emt 0:00:32]} 29. Nxd3 {[%emt 0:01:21]} cxd3 {[%emt 0:00:36]} 30. Qxd3 {[%emt 0:00:00]} a5 {[%emt 0:01:06]} 31. Ra2 {[%emt 0:01:39]} Re1+ {[%emt 0:00:03]} 32. Kh2 {[%emt 0:00:45]} f4 {[%emt 0:00:48]} 33. Be4 {[%emt 0:01:31]} fxg3+ {[%emt 0:00:52]} 34. fxg3 {[%emt 0:00:56]} Qg4 {[%emt 0:01:14]} 35. Bxh7+ {[%emt 0:01:39]} Kg7 {[%emt 0:00:20]} 36. b3 {[%emt 0:01:39]} Rd1 {[%emt 0:01:22]} 37. Qf5 {[%emt 0:02:13]} Qxf5 {[%emt 0:01:08]} 38. Bxf5 {[%emt 0:00:00]} Rxd5 {[%emt 0:00:02]} 39. Rf2 {[%emt 0:01:33]} Be7 {[%emt 0:00:35]} 40. Kh3 {[%emt 0:01:35]} Bc5 {[%emt 0:00:00]} 41. Rf3 {[%emt 0:00:09]} Re5 {[%emt 0:00:27]} 42. h5 {[%emt 0:00:49]} Re3 {[%emt 0:01:04]} 43. Rxe3 {[%emt 0:00:27]} Bxe3 {[%emt 0:00:00]} 44. g4 {[%emt 0:00:18]} f6 {[%emt 0:00:00]} 45. Kg3 {[%emt 0:00:43]} Kf7 {[%emt 0:00:00]} 46. Kf3 {[%emt 0:00:00]} Bg5 {[%emt 0:00:23]} 47. Ke4 {[%emt 0:00:20]} Kg7 {[%emt 0:00:16]} 48. Kd5 {[%emt 0:00:06]} Be3 {[%emt 0:00:00]} 49. Ke6 {[%emt 0:00:11]} Bd4 {[%emt 0:00:00]} 1/2-1/2

[Event "White Rook U14 Final 2019"]
[Site "Sochi"]
[Date "2019.06.06"]
[Round "2.27"]
[White "Minakov, Artemij"]
[Black "Tolmaev, Georgy"]
[Result "1/2-1/2"]
[ECO "A81"]
[WhiteElo "1426"]
[BlackElo "1302"]
[Annotator "NA RC"]
[PlyCount "116"]
[EventDate "2019.06.02"]
[EventCountry "RUS"]
[SourceTitle "playchess.com"]
[Source "ChessBase"]
[SourceQuality "1"]
[TimeControl "5400+30"]

1. Nf3 {[%emt 0:00:00]} e6 {[%emt 0:00:14]} 2. g3 {[%emt 0:00:03]} d5 {[%emt 0:00:27]} 3. d4 {[%emt 0:01:49]} f5 {[%emt 0:00:15]} 4. Bg2 {[%emt 0:00:28]} Nf6 {[%emt 0:00:16]} 5. b3 {[%emt 0:01:35]} c6 {[%emt 0:01:11]} 6. Bb2 {[%emt 0:01:33]} Bd6 {[%emt 0:00:59]} 7. Nbd2 {[%emt 0:04:53]} O-O {[%emt 0:00:39]} 8. Ne5 {[%emt 0:02:26]} Nbd7 {[%emt 0:00:57]} 9. Ndf3 {[%emt 0:00:31]} Ne4 {[%emt 0:00:45]} 10. e3 {[%emt 0:01:11]} Bb4+ {[%emt 0:00:33]} 11. Ke2 {[%emt 0:03:26]} Bc3 {[%emt 0:04:23]} 12. Qc1 {[%emt 0:00:33]} Qa5 {[%emt 0:02:28]} 13. Bxc3 {[%emt 0:07:16]} Nxc3+ {[%emt 0:00:25]} 14. Kf1 {[%emt 0:00:15]} b6 {[%emt 0:15:24]} 15. Qd2 {[%emt 0:07:55]} Qb5+ {[%emt 0:02:34]} 16. Nd3 {[%emt 0:00:28]} Ne4 {[%emt 0:00:30]} 17. Qb4 {[%emt 0:02:17]} Qxb4 {[%emt 0:01:52]} 18. Nxb4 {[%emt 0:00:09]} c5 {[%emt 0:00:05]} 19. Nd3 {[%emt 0:00:48]} Ba6 {[%emt 0:01:16]} 20. Nfe1 {[%emt 0:03:19]} Rac8 {[%emt 0:00:15]} 21. f3 {[%emt 0:02:47]} Nd6 {[%emt 0:01:22]} 22. Kf2 {[%emt 0:07:37]} Bxd3 {[%emt 0:03:30]} 23. Nxd3 {[%emt 0:01:43]} cxd4 {[%emt 0:01:04]} 24. Rac1 {[%emt 0:00:10]} dxe3+ {[%emt 0:01:28]} 25. Kxe3 {[%emt 0:00:14]} Nc5 {[%emt 0:00:25]} 26. Ne5 {[%emt 0:01:32]} Nf7 {[%emt 0:03:14]} 27. Kd4 {[%emt 0:01:14]} Nxe5 {[%emt 0:01:49]} 28. Kxe5 {[%emt 0:01:02]} Kf7 {[%emt 0:00:07]} 29. Rhd1 {[%emt 0:00:30]} Nd7+ {[%emt 0:02:00]} 30. Kd4 {[%emt 0:02:59]} Rc5 {[%emt 0:00:57]} 31. f4 {[%emt 0:03:29]} Rfc8 {[%emt 0:02:05]} 32. c3 {[%emt 0:03:27]} Nf6 {[%emt 0:05:07]} 33. Rd2 {[%emt 0:01:59]} Ne4 {[%emt 0:02:40]} 34. Rdc2 {[%emt 0:01:07]} Kf6 {[%emt 0:00:50]} 35. Bf1 {[%emt 0:04:01]} h6 {[%emt 0:05:32]} 36. Bd3 {[%emt 0:04:52]} Nd6 {[%emt 0:02:53]} 37. Bf1 {[%emt 0:01:50]} g5 {[%emt 0:01:08]} 38. Rg2 {[%emt 0:05:05]} Ne4 {[%emt 0:01:10]} 39. Rgc2 {[%emt 0:00:41]} g4 {[%emt 0:00:06]} 40. Bd3 {[%emt 0:06:09]} h5 {[%emt 0:00:25]} 41. b4 {[%emt 0:00:21]} R5c7 {[%emt 0:01:06]} 42. c4 {[%emt 0:00:25]} Rd8 {[%emt 0:09:17]} 43. c5 {[%emt 0:04:07]} bxc5+ {[%emt 0:00:25]} 44. bxc5 {[%emt 0:00:34]} Rb8 {[%emt 0:00:08]} 45. Bxe4 {[%emt 0:00:30]} Rb4+ {[%emt 0:07:39]} 46. Kd3 {[%emt 0:01:47]} fxe4+ {[%emt 0:00:18]} 47. Ke3 {[%emt 0:00:24]} Kf5 {[%emt 0:00:35]} 48. c6 {[%emt 0:00:33]} e5 {[%emt 0:00:19]} 49. Rc5 {[%emt 0:00:15]} Rd4 {[%emt 0:02:04]} 50. Rb5 {[%emt 0:01:48]} Rd3+ {[%emt 0:00:53]} 51. Ke2 {[%emt 0:00:34]} exf4 {[%emt 0:00:15]} 52. gxf4 {[%emt 0:01:14]} Ke6 {[%emt 0:00:06]} 53. Rb8 {[%emt 0:00:23]} g3 {[%emt 0:02:40]} 54. hxg3 {[%emt 0:03:25]} Rxg3 {[%emt 0:00:17]} 55. Re8+ {[%emt 0:00:04]} Kf7 {[%emt 0:00:03]} 56. Rd8 {[%emt 0:00:08]} Rd3 {[%emt 0:01:04]} 57. Rh8 {[%emt 0:00:48]} Ke6 {[%emt 0:00:08]} 58. Rxh5 {[%emt 0:03:12]} Rf3 {[%emt 0:00:54]} 1/2-1/2

[Event "White Rook U14 Final 2019"]
[Site "Sochi"]
[Date "2019.06.06"]
[Round "2.28"]
[White "Karaseni, Ekaterina"]
[Black "Nazarova, Ekaterina"]
[Result "1-0"]
[ECO "C32"]
[WhiteElo "1293"]
[BlackElo "1221"]
[Annotator "NA RC"]
[PlyCount "145"]
[EventDate "2019.06.02"]
[EventCountry "RUS"]
[SourceTitle "playchess.com"]
[Source "ChessBase"]
[SourceQuality "1"]
[TimeControl "5400+30"]

1. e4 {[%emt 0:00:00]} e5 {[%emt 0:00:10]} 2. f4 {[%emt 0:00:03]} d5 {[%emt 0:00:41]} 3. exd5 {[%emt 0:00:11]} e4 {[%emt 0:00:06]} 4. Nc3 {[%emt 0:01:40]} Nf6 {[%emt 0:05:31]} 5. Bc4 {[%emt 0:03:39]} Bc5 {[%emt 0:14:01]} 6. d4 {[%emt 0:02:47]} Bb4 {[%emt 0:07:32]} 7. Nge2 {[%emt 0:06:30]} Nxd5 {[%emt 0:06:45]} 8. Bxd5 {[%emt 0:01:01]} Qxd5 {[%emt 0:02:51]} 9. O-O {[%emt 0:02:23]} Qc6 {[%emt 0:06:34]} 10. f5 {[%emt 0:05:52]} Nd7 {[%emt 0:07:07]} 11. Qe1 {[%emt 0:04:48]} Qf6 {[%emt 0:08:42]} 12. Qg3 {[%emt 0:05:48]} Bd6 {[%emt 0:07:08]} 13. Nxe4 {[%emt 0:04:47]} Bxg3 {[%emt 0:05:29]} 14. Nxf6+ {[%emt 0:00:09]} Nxf6 {[%emt 0:00:05]} 15. Nxg3 {[%emt 0:00:20]} O-O {[%emt 0:02:30]} 16. Bf4 {[%emt 0:02:57]} c6 {[%emt 0:01:17]} 17. Rae1 {[%emt 0:01:39]} Bd7 {[%emt 0:02:03]} 18. Bd6 {[%emt 0:02:29]} Rfe8 {[%emt 0:00:24]} 19. c3 {[%emt 0:03:37]} Ng4 {[%emt 0:03:35]} 20. Be5 {[%emt 0:12:45]} Nh6 {[%emt 0:04:19]} 21. f6 {[%emt 0:06:47]} g6 {[%emt 0:02:00]} 22. h3 {[%emt 0:01:09]} Nf5 {[%emt 0:02:11]} 23. Nxf5 {[%emt 0:00:35]} Bxf5 {[%emt 0:00:07]} 24. Re3 {[%emt 0:02:31]} h5 {[%emt 0:02:55]} 25. Rfe1 {[%emt 0:04:02]} Rac8 {[%emt 0:02:09]} 26. Bd6 {[%emt 0:02:49]} Rxe3 {[%emt 0:00:29]} 27. Rxe3 {[%emt 0:00:14]} Rd8 {[%emt 0:00:57]} 28. Bc5 {[%emt 0:02:12]} a6 {[%emt 0:00:49]} 29. Re7 {[%emt 0:01:20]} Rd7 {[%emt 0:01:01]} 30. Kf2 {[%emt 0:00:45]} Kh7 {[%emt 0:02:42]} 31. Kf3 {[%emt 0:01:08]} Kh6 {[%emt 0:01:10]} 32. g4 {[%emt 0:01:34]} hxg4+ {[%emt 0:00:45]} 33. hxg4 {[%emt 0:00:04]} Be6 {[%emt 0:00:53]} 34. Rxd7 {[%emt 0:00:56]} Bxd7 {[%emt 0:00:03]} 35. Kf4 {[%emt 0:04:31]} b5 {[%emt 0:00:47]} 36. Bf8+ {[%emt 0:00:37]} Kh7 {[%emt 0:00:23]} 37. g5 {[%emt 0:00:23]} Be6 {[%emt 0:01:00]} 38. a3 {[%emt 0:00:21]} Bd5 {[%emt 0:00:30]} 39. Ke5 {[%emt 0:00:18]} a5 {[%emt 0:00:27]} 40. a4 {[%emt 0:02:27]} bxa4 {[%emt 0:00:10]} 41. Kd6 {[%emt 0:00:39]} Kg8 {[%emt 0:00:17]} 42. Be7 {[%emt 0:00:20]} Kh7 {[%emt 0:00:16]} 43. Kc5 {[%emt 0:00:40]} a3 {[%emt 0:00:16]} 44. bxa3 {[%emt 0:00:21]} a4 {[%emt 0:00:07]} 45. Kb4 {[%emt 0:00:08]} Bb3 {[%emt 0:00:16]} 46. c4 {[%emt 0:00:20]} Kg8 {[%emt 0:00:33]} 47. d5 {[%emt 0:00:17]} cxd5 {[%emt 0:00:36]} 48. cxd5 {[%emt 0:01:01]} Bxd5 {[%emt 0:00:15]} 49. Kxa4 {[%emt 0:00:02]} Bc6+ {[%emt 0:00:01]} 50. Kb4 {[%emt 0:00:02]} Ba8 {[%emt 0:00:37]} 51. a4 {[%emt 0:00:06]} Kh7 {[%emt 0:00:59]} 52. a5 {[%emt 0:00:08]} Bb7 {[%emt 0:00:56]} 53. Kb5 {[%emt 0:00:05]} Ba8 {[%emt 0:00:29]} 54. a6 {[%emt 0:00:07]} Bd5 {[%emt 0:00:23]} 55. Kb6 {[%emt 0:00:10]} Kg8 {[%emt 0:00:14]} 56. Kc7 {[%emt 0:00:32]} Kh8 {[%emt 0:00:45]} 57. a7 {[%emt 0:00:31]} Kg8 {[%emt 0:00:41]} 58. Kb8 {[%emt 0:00:11]} Kh7 {[%emt 0:00:40]} 59. a8=Q {[%emt 0:00:06]} Bxa8 {[%emt 0:00:20]} 60. Kxa8 {[%emt 0:00:07]} Kg8 {[%emt 0:00:28]} 61. Kb8 {[%emt 0:00:04]} Kh7 {[%emt 0:00:17]} 62. Kc8 {[%emt 0:00:25]} Kg8 {[%emt 0:00:14]} 63. Kd8 {[%emt 0:00:08]} Kh7 {[%emt 0:00:26]} 64. Ke8 {[%emt 0:00:14]} Kg8 {[%emt 0:00:18]} 65. Bc5 {[%emt 0:00:08]} Kh8 {[%emt 0:00:13]} 66. Kxf7 {[%emt 0:00:11]} Kh7 {[%emt 0:00:13]} 67. Ke8 {[%emt 0:00:07]} Kg8 {[%emt 0:00:11]} 68. f7+ {[%emt 0:00:09]} Kh7 {[%emt 0:00:13]} 69. Ke7 {[%emt 0:00:10]} Kh8 {[%emt 0:00:13]} 70. f8=Q+ {[%emt 0:00:14]} Kh7 {[%emt 0:00:18]} 71. Qf6 {[%emt 0:00:16]} Kg8 {[%emt 0:00:04]} 72. Qxg6+ {[%emt 0:00:14]} Kh8 {[%emt 0:00:18]} 73. Bd4# {[%emt 0:00:23]} 1-0